bitfinex/quotes_ETHUSD_20211001
["timestamp","ask_amount","ask_price","bid_price","bid_amount"]
[1633099768252,0.3590029,3199.5,3199.0,0.0113465]
[1633099768448,0.3090029,3199.5,3199.1,0.49320826]
[1633099768847,1.16141808,3199.3,3199.1,0.49320826]
[1633099769048,0.3090029,3199.5,3199.1,0.49320826]
[1633099769248,0.3090029,3199.5,3199.2,3.12564]
[1633099769448,0.3090029,3199.5,3199.3,0.6352803]
[1633099770049,1.16479421,3199.5,3199.3,0.6352803]
[1633099770248,0.3090029,3199.5,3199.3,1.61452607]
[1633099771249,1.1088495,3199.4,3199.3,0.6352803]
[1633099771452,1.1088495,3199.4,3199.0,3.1374265]
[1633099771650,1.1088495,3199.4,3199.1,0.54128778]
[1633099771849,5.7983395,3199.4,3199.1,0.54128778]
[1633099772448,0.80159808,3199.3,3199.1,0.54128778]
[1633099772649,1.1088495,3199.4,3199.1,0.54128778]
[1633099773051,0.3090029,3199.5,3199.1,0.54128778]
[1633099773650,1.00870667,3199.4,3199.1,0.54128778]
[1633099774050,1.15342333,3199.3,3199.1,0.54128778]
[1633099774251,1.294,3199.2,3199.1,0.54128778]
[1633099774552,5.84320333,3199.3,3199.0,0.0113465]
[1633099774753,7.0455267,3199.3,3199.0,0.0113465]
[1633099774953,1.2018255,3199.2,3199.0,0.0113465]
[1633099775153,4.69067,3199.2,3199.0,0.0113465]
[1633099775356,1.294,3199.1,3199.0,0.0113465]
[1633099777555,4.69067,3199.2,3199.0,0.0113465]
[1633099777954,4.69067,3199.2,3199.0,0.6392198]
[1633099778158,4.64067,3199.2,3199.0,0.6392198]
[1633099779221,4.64067,3199.2,3198.5,3.1298514]
[1633099779222,3.7543005,3198.9,3198.5,0.003]
[1633099779422,0.02589648,3198.7,3198.5,0.003]
[1633099779626,0.02589648,3198.7,3198.0,0.006]
[1633099779628,11.4,3198.6,3198.0,0.006]
[1633099779821,11.4,3198.6,3197.6,0.40311776]
[1633099779822,4.17858131,3198.5,3197.7,0.006]
[1633099780024,2.29552754,3198.4,3197.7,0.006]
[1633099780222,0.71843922,3198.0,3197.7,0.006]
[1633099780621,7.53911851,3198.2,3197.7,0.006]
[1633099780829,9.26352338,3198.2,3197.7,0.006]
[1633099781222,1.294,3198.0,3197.7,0.006]
[1633099781425,1.127174,3197.8,3197.7,0.006]
[1633099782622,2.421174,3197.8,3197.7,0.006]
[1633099783825,1.127174,3197.8,3197.7,0.006]
[1633099784224,4.69251,3197.9,3197.7,0.006]
[1633099784928,1.47387637,3198.5,3197.8,1.294]
[1633099784929,1.19852662,3198.5,3197.8,1.294]
[1633099785127,4.95399802,3198.9,3198.3,0.079913]
[1633099785327,0.87274587,3198.8,3198.2,1.52052371]
[1633099785530,0.87274587,3198.8,3198.4,0.003]
[1633099785728,3.7543005,3198.9,3198.3,0.003]
[1633099786130,3.7543005,3198.9,3198.5,3.1266497]
[1633099786530,3.7543005,3198.9,3198.6,0.61033481]
[1633099786730,1.09736845,3198.8,3198.6,0.61033481]
[1633099786929,3.7543005,3198.9,3198.6,0.61033481]
[1633099787430,4.62530861,3198.9,3198.6,0.61033481]
[1633099787631,4.62530861,3198.9,3198.5,0.003]
[1633099788030,3.7543005,3198.9,3198.3,3.12979]
[1633099788230,8.4444405,3198.9,3198.3,3.72856921]
[1633099788433,8.4444405,3198.9,3198.4,0.003]
[1633099788629,1.16008204,3198.7,3198.4,0.003]
[1633099788831,3.7543005,3198.9,3198.4,0.003]
[1633099789029,3.7543005,3198.9,3198.7,0.80886621]
[1633099789230,3.7543005,3198.9,3198.7,1.39578097]
[1633099789829,4.89412785,3198.9,3198.7,1.39578097]
[1633099790029,3.7543005,3198.9,3198.7,1.39578097]
[1633099790630,4.69015,3198.8,3198.7,1.39578097]
[1633099790831,4.69015,3198.8,3198.4,0.003]
[1633099791034,4.69015,3198.8,3198.5,0.003]
[1633099791833,1.13643139,3198.7,3198.5,0.003]
[1633099792230,10.0078405,3198.9,3198.5,0.003]
[1633099792631,9.9078405,3198.9,3198.5,0.003]
[1633099793032,0.75138565,3198.8,3198.5,0.003]
[1633099793640,0.75138565,3198.8,3198.6,1.294]
[1633099793834,3.6543005,3198.9,3198.7,0.068261]
[1633099794232,3.6543005,3198.9,3198.7,0.61731644]
[1633099794433,3.6543005,3198.9,3198.7,0.068261]
[1633099794832,3.6543005,3198.9,3198.8,1.294]
[1633099795032,3.6543005,3198.9,3198.8,1.32531574]
[1633099795233,3.6543005,3198.9,3198.8,1.77176467]
[1633099795433,3.6543005,3198.9,3198.8,1.97497588]
[1633099795638,3.6543005,3198.9,3198.8,1.79961574]
[1633099795835,3.6543005,3198.9,3198.8,1.830038]
[1633099796032,3.6543005,3198.9,3198.8,1.92922324]
[1633099796237,3.6543005,3198.9,3198.8,1.87414169]
[1633099796432,3.6543005,3198.9,3198.8,0.47479393]
[1633099796733,3.6543005,3198.9,3198.8,1.32531574]
[1633099796933,3.6543005,3198.9,3198.7,6.89684571]
[1633099797132,3.6543005,3198.9,3198.7,6.93650154]
[1633099797732,3.6543005,3198.9,3198.7,6.95440571]
[1633099798233,3.6543005,3198.9,3198.7,6.9345178]
[1633099799839,1.07933178,3198.8,3198.7,6.9345178]
[1633099800037,3.6543005,3198.9,3198.7,6.9345178]
[1633099801841,3.6543005,3198.9,3198.7,3.8085178]
[1633099802641,8.3439205,3198.9,3198.7,0.64473571]
[1633099802839,8.3439205,3198.9,3198.6,0.52951272]
[1633099803240,0.94005581,3198.7,3198.6,0.52951272]
[1633099803441,0.94005581,3198.7,3198.5,0.003]
[1633099803641,0.94005581,3198.7,3198.3,0.64645372]
[1633099803843,4.6901,3198.6,3198.4,0.003]
[1633099804048,0.70747993,3198.8,3198.4,0.003]
[1633099804242,0.70747993,3198.8,3198.2,0.65401448]
[1633099804243,0.70747993,3198.8,3198.2,0.69416465]
[1633099804441,0.70747993,3198.8,3198.3,0.003]
[1633099805649,0.70747993,3198.8,3198.3,0.46866756]
[1633099805650,0.75245914,3198.7,3198.3,0.46866756]
[1633099805846,0.75245914,3198.7,3198.3,0.003]
[1633099806044,0.75245914,3198.7,3198.4,0.003]
[1633099806245,0.75245914,3198.7,3197.9,0.006]
[1633099806447,4.69145,3198.3,3197.7,0.006]
[1633099806648,2.74058064,3198.2,3197.7,0.006]
[1633099806848,0.74741485,3198.1,3197.7,0.006]
[1633099807846,4.69186,3198.0,3197.7,0.006]
[1633099809248,4.69186,3198.0,3197.8,0.00810491]
[1633099809645,4.69186,3198.0,3197.9,0.006]
[1633099810047,4.93958427,3198.9,3197.9,12.658612]
[1633099810246,0.74823917,3198.8,3198.3,0.07678]
[1633099810447,0.74823917,3198.8,3198.4,0.72603125]
[1633099810647,0.74823917,3198.8,3198.4,0.76726171]
[1633099810846,0.74823917,3198.8,3198.5,0.003]
[1633099811045,0.74823917,3198.8,3198.6,1.294]
[1633099811249,3.6543005,3198.9,3198.6,1.294]
[1633099811250,3.6543005,3198.9,3198.7,2.89660321]
[1633099811448,3.6543005,3198.9,3198.8,20.707913]
[1633099811648,3.6543005,3198.9,3198.8,8.44799986]
[1633099811852,3.6543005,3198.9,3198.8,8.42095431]
[1633099812046,3.6543005,3198.9,3198.8,11.72236609]
[1633099812246,3.6543005,3198.9,3198.8,12.486213]
[1633099812450,0.3120029,3199.5,3198.9,4.08509326]
[1633099812648,0.3120029,3199.5,3199.4,14.379913]
[1633099812853,0.3120029,3199.5,3199.4,6.321513]
[1633099813051,0.3120029,3199.5,3199.4,20.92225625]
[1633099813248,0.3120029,3199.5,3199.4,26.90293625]
[1633099813448,8.65623699,3199.8,3199.6,6.05041012]
[1633099813649,1.32850835,3200.0,3199.8,0.3090029]
[1633099813848,0.003,3200.5,3200.0,18.928]
[1633099814047,0.003,3200.5,3200.4,11.129913]
[1633099814353,0.003,3201.0,3200.6,1.78497497]
[1633099814548,0.003,3201.0,3200.9,14.40545667]
[1633099814748,2.48,3201.2,3200.9,14.40545667]
[1633099814749,2.48,3201.2,3201.0,2.034]
[1633099814949,0.003,3202.0,3201.3,3.12288]
[1633099815152,0.003,3202.0,3201.4,16.15609]
[1633099815348,0.003,3202.0,3201.5,0.9027]
[1633099815549,0.003,3202.0,3201.9,14.379913]
[1633099815748,0.003,3202.0,3201.9,19.157913]
[1633099815950,0.003,3202.5,3202.0,14.3]
[1633099816149,0.003,3202.5,3202.2,4.628]
[1633099816351,0.003,3202.5,3202.4,14.369498]
[1633099816550,0.003,3203.0,3202.4,14.54443089]
[1633099816749,0.003,3203.0,3202.6,3.12184]
[1633099816952,0.003,3203.0,3202.7,0.99206385]
[1633099817150,0.003,3203.0,3202.8,5.01772796]
[1633099817350,0.003,3203.0,3202.9,0.218289]
[1633099818556,0.003,3203.0,3202.8,4.628]
[1633099818558,0.003,3203.0,3202.8,0.57791135]
[1633099818562,5.98138,3203.0,3202.8,0.57791135]
[1633099818755,3.08359929,3202.9,3202.8,0.57791135]
[1633099818954,4.68738,3203.0,3201.8,0.003]
[1633099819155,4.68738,3203.0,3202.0,0.057538]
[1633099819156,2.97319154,3202.9,3202.0,0.057538]
[1633099819353,3.11376607,3202.9,3201.6,0.003]
[1633099819556,1.81983968,3202.4,3202.0,0.003]
[1633099819753,6.50498968,3202.4,3202.0,0.003]
[1633099819950,6.50498968,3202.4,3201.7,0.62761388]
[1633099820350,6.50498968,3202.4,3201.8,0.003]
[1633099820551,0.83743363,3202.4,3201.8,0.003]
[1633099820751,4.685,3202.6,3201.8,0.003]
[1633099821552,0.003,3203.0,3201.8,0.003]
[1633099821752,0.89578621,3202.5,3201.8,0.003]
[1633099822153,2.03417013,3202.5,3201.8,0.003]
[1633099822752,0.89578621,3202.5,3201.8,0.003]
[1633099822952,0.003,3203.0,3201.8,0.003]
[1633099823152,0.003,3203.0,3202.0,0.067092]
[1633099823553,0.003,3203.0,3202.0,0.070092]
[1633099823952,0.003,3203.0,3202.5,0.75768429]
[1633099824155,0.003,3203.0,3202.5,1.39921097]
[1633099824951,0.93426403,3203.0,3202.8,0.00810491]
[1633099825150,0.95376187,3202.9,3202.8,0.00810491]
[1633099825551,0.003,3203.0,3202.8,0.00810491]
[1633099826351,0.003,3203.0,3202.8,0.01644146]
[1633099826750,1.11566297,3203.0,3202.8,0.01644146]
[1633099827150,1.96224955,3203.0,3202.8,0.01644146]
[1633099827550,5.79990297,3203.0,3202.8,0.01644146]
[1633099827754,5.74990297,3203.0,3202.8,0.01644146]
[1633099828552,6.61233415,3203.0,3202.8,0.01644146]
[1633099829157,7.544,3202.9,3202.8,0.01644146]
[1633099829355,1.294,3202.9,3202.8,0.01644146]
[1633099830554,1.294,3202.9,3202.8,0.00810491]
[1633099831759,1.31948184,3202.9,3202.1,0.003]
[1633099831960,1.294,3202.5,3202.1,0.003]
[1633099832157,4.68641,3202.3,3201.5,0.057538]
[1633099832356,6.24854,3202.4,3201.5,0.057538]
[1633099832557,6.24854,3202.4,3201.6,0.006]
[1633099832953,0.95852999,3202.0,3201.6,0.006]
[1633099833757,5.56870492,3202.1,3201.2,0.009]
[1633099834155,4.6857,3202.1,3201.5,0.91784446]
[1633099834357,4.6857,3202.1,3201.0,0.060538]
[1633099834358,4.6857,3202.1,3200.3,11.6651]
[1633099834359,1.98704754,3200.8,3200.3,11.6651]
[1633099834556,1.98704754,3200.8,3200.7,1.496743]
[1633099834755,1.98704754,3200.8,3200.7,0.202743]
[1633099835758,1.98704754,3200.8,3200.7,1.496743]
[1633099836357,0.003,3201.5,3200.7,1.496743]
[1633099836559,3.96543869,3201.2,3200.7,0.15]
[1633099836762,3.96543869,3201.2,3200.0,0.003]
[1633099836765,0.87498584,3200.6,3200.0,0.003]
[1633099836960,0.026371,3200.2,3200.0,0.003]
[1633099837158,0.026371,3200.2,3199.8,0.003]
[1633099837359,3.1256,3199.9,3199.3,0.006]
[1633099837560,3.1256,3199.9,3199.2,0.89929521]
[1633099837561,6.251472,3199.7,3199.2,0.89929521]
[1633099837766,3.12572,3199.7,3199.2,0.89929521]
[1633099837959,3.12572,3199.7,3199.4,1.348646]
[1633099838158,3.12572,3199.7,3199.4,0.054646]
[1633099838423,3.12572,3199.7,3199.5,0.006]
[1633099838621,3.1255,3200.4,3199.6,0.15]
[1633099838822,0.87498584,3200.6,3200.3,0.77526792]
[1633099839024,0.87498584,3200.6,3200.0,0.15]
[1633099839420,0.87498584,3200.6,3200.0,0.153]
[1633099840019,1.1051131,3200.2,3200.0,0.153]
[1633099840221,4.2299231,3200.2,3200.0,0.153]
[1633099840423,3.12481,3200.2,3200.0,0.153]
[1633099844223,3.12481,3200.2,3199.5,0.003]
[1633099844224,1.18042221,3200.1,3199.5,0.003]
[1633099844423,3.12481,3200.2,3199.6,0.15]
[1633099845423,3.84800637,3200.2,3199.6,0.15]
[1633099845626,1.06984628,3200.1,3199.6,0.15]
[1633099845826,3.12511,3200.0,3199.6,0.15]
[1633099846025,6.25022,3200.0,3199.7,4.68715]
[1633099846224,3.1251068,3199.9,3199.7,0.15]
[1633099846625,3.1251068,3199.9,3199.3,0.98354632]
[1633099846825,3.1251068,3199.9,3199.4,0.15]
[1633099847024,3.1251068,3199.9,3199.4,0.153]
[1633099847226,3.1251068,3199.9,3199.5,4.69036]
[1633099847425,3.1251068,3199.9,3199.6,0.15]
[1633099848024,6.25022,3200.0,3199.6,0.15]
[1633099848425,3.9219816,3200.0,3199.6,0.15]
[1633099848625,3.9219816,3200.0,3199.7,4.68676]
[1633099848626,3.1249034,3199.9,3199.7,4.68676]
[1633099848825,3.1249034,3199.9,3199.7,4.83676]
[1633099850226,3.1249034,3199.9,3199.8,0.89128396]
[1633099850627,6.25002,3200.0,3199.8,1.04128396]
[1633099851428,6.25002,3200.0,3199.8,0.15]
[1633099852430,2.16501813,3199.9,3199.5,0.003]
[1633099852633,5.55942813,3199.9,3199.5,0.003]
[1633099852831,1.12837353,3199.4,3199.1,0.15]
[1633099853029,10.24798313,3199.9,3199.2,0.003]
[1633099853434,10.24798313,3199.9,3199.3,0.79709702]
[1633099853629,9.376965,3199.9,3199.3,0.79709702]
[1633099853831,9.376965,3199.9,3199.4,0.003]
[1633099854229,9.376965,3199.9,3199.5,4.68727]
[1633099854627,9.376965,3199.9,3199.5,4.69027]
[1633099854830,0.73767271,3199.8,3199.5,0.003]
[1633099855229,9.376965,3199.9,3199.2,0.003]
[1633099855431,1.19947636,3199.7,3199.2,0.003]
[1633099856231,0.71364243,3199.4,3199.2,0.003]
[1633099856837,0.71364243,3199.4,3199.0,0.006]
[1633099857035,3.1264,3199.3,3199.0,0.006]
[1633099857233,7.816,3199.3,3199.0,0.006]
[1633099857831,0.93542659,3199.1,3199.0,0.006]
[1633099860436,3.1264,3199.3,3199.0,0.006]
[1633099860834,1.294,3199.2,3199.0,0.006]
[1633099861034,3.1264,3199.3,3199.0,0.006]
[1633099861238,7.81595,3199.3,3199.0,0.006]
[1633099861436,1.15143708,3199.2,3199.0,0.006]
[1633099863239,1.294,3199.1,3199.0,0.006]
[1633099863849,1.294,3199.1,3198.3,0.003]
[1633099864037,1.15143708,3199.2,3198.3,0.003]
[1633099864242,1.15143708,3199.2,3198.2,0.003]
[1633099864438,1.15143708,3199.2,3198.3,4.68942]
[1633099864640,1.15143708,3199.2,3198.3,0.85844096]
[1633099864641,6.25336,3198.8,3198.3,0.85844096]
[1633099864838,6.25336,3198.8,3198.4,0.003]
[1633099865639,6.25336,3198.8,3198.3,0.003]
[1633099866241,3.1266559,3198.6,3198.3,0.003]
[1633099866638,3.1266559,3198.6,3198.3,0.98431246]
[1633099867139,7.85336,3198.8,3198.4,0.003]
[1633099867342,1.6,3198.8,3198.6,1.82445704]
[1633099867542,1.6,3198.8,3198.7,14.77153611]
[1633099868341,1.6,3198.8,3198.7,16.06553611]
[1633099869142,1.6,3198.8,3198.7,18.27408924]
[1633099869342,1.6,3198.8,3198.7,17.95255313]
[1633099869544,1.6,3198.8,3198.7,22.63997313]
[1633099871549,1.6,3198.8,3198.7,8.33997313]
[1633099871744,1.6,3198.8,3198.7,6.74267313]
[1633099872343,1.6,3198.8,3198.7,14.94267313]
[1633099872545,1.6,3198.8,3198.7,6.74267313]
[1633099873347,1.6,3198.8,3198.7,13.21506077]
[1633099873548,3.14809499,3200.5,3198.8,14.3]
[1633099873752,0.003,3200.5,3199.1,4.68735]
[1633099873949,2.97141336,3200.1,3199.2,0.15]
[1633099874350,0.76689599,3199.5,3199.2,0.15]
[1633099874549,0.76689599,3199.5,3198.9,6.24979]
[1633099874751,0.003,3199.5,3198.9,6.24979]
[1633099875348,0.003,3199.5,3198.9,6.39979]
[1633099875751,0.003,3199.5,3199.0,0.78167137]
[1633099875948,1.603,3199.5,3199.0,0.78167137]
[1633099877350,1.603,3199.5,3199.1,0.15]
[1633099877549,1.603,3199.5,3199.2,4.68729]
[1633099877753,1.603,3199.5,3199.3,0.15]
[1633099878851,1.603,3199.5,3199.4,4.68744]
[1633099879050,1.603,3199.5,3199.4,4.83744]
[1633099882054,1.603,3199.5,3199.4,4.63744]
[1633099891864,1.603,3199.5,3199.4,6.43392811]
[1633099892342,3.12464,3199.9,3199.5,1.0658]
[1633099892468,0.00786314,3200.0,3199.6,2.18359636]
[1633099892666,0.003,3200.5,3199.9,0.055222]
[1633099892866,0.003,3200.5,3200.1,0.21633194]
[1633099893066,0.003,3200.5,3200.2,0.15]
[1633099893264,0.003,3200.5,3200.3,0.15]
[1633099893466,0.003,3200.5,3200.3,0.46517632]
[1633099893668,0.003,3201.0,3200.5,14.60494724]
[1633099893867,0.003,3201.0,3200.9,14.29154406]
[1633099894067,0.003,3201.0,3200.9,0.95054375]
[1633099894264,0.003,3201.0,3200.9,0.15]
[1633099895669,0.003,3201.5,3200.9,6.12821]
[1633099895869,0.003,3201.5,3201.2,0.060287]
[1633099896067,0.003,3201.5,3201.3,0.15]
[1633099896466,0.003,3201.5,3201.4,15.0575492]
[1633099896666,0.003,3201.5,3201.4,15.45038646]
[1633099897472,0.003,3202.0,3201.5,14.3]
[1633099897666,0.003,3202.0,3201.7,0.25001411]
[1633099897872,0.003,3202.0,3201.9,0.21722559]
[1633099898068,0.003,3202.0,3201.9,0.15]
[1633099898069,1.297,3202.0,3201.9,0.15]
[1633099898469,0.003,3202.0,3201.9,0.35423786]
[1633099898669,0.003,3202.0,3201.9,0.15]
[1633099906177,0.003,3202.0,3201.9,0.44688199]
[1633099907444,0.003,3202.5,3201.9,0.52436533]
[1633099908242,0.003,3202.5,3202.3,0.34098435]
[1633099908442,0.003,3202.5,3202.4,0.15]
[1633099908643,0.003,3202.5,3202.4,0.86823612]
[1633099908841,0.003,3203.0,3202.4,0.86823612]
[1633099909040,0.003,3203.0,3202.9,0.78121934]
[1633099909241,1.297,3203.0,3202.9,0.93121934]
[1633099909645,1.297,3203.0,3202.9,0.15]
[1633099909840,1.297,3203.0,3202.9,4.83297]
[1633099910242,1.297,3203.0,3202.6,6.24396]
[1633099910445,2.38653965,3202.8,3202.7,0.15]
[1633099910653,0.84172239,3202.7,3202.4,0.15]
[1633099911244,0.003,3203.0,3202.4,4.83369]
[1633099911444,3.13418597,3202.6,3202.4,4.83369]
[1633099912244,0.01172597,3202.6,3202.4,4.83369]
[1633099914066,0.01172597,3202.6,3202.5,0.00833136]
[1633099915667,0.01172597,3202.9,3202.5,0.00833136]
[1633099916767,0.01172597,3202.9,3202.7,4.68305]
[1633099916968,0.01172597,3202.9,3202.5,0.00833136]
[1633099917571,0.80985022,3202.6,3202.5,0.00833136]
[1633099917770,3.12247,3202.8,3202.5,0.00833136]
[1633099917971,1.294,3202.7,3202.5,0.00833136]
[1633099918168,3.12247,3202.8,3202.5,0.00833136]
[1633099918372,0.01172597,3202.7,3202.5,0.00833136]
[1633099918969,0.90129848,3202.6,3202.5,0.00833136]
[1633099919168,2.19529848,3202.6,3202.5,0.00833136]
[1633099919371,2.19529848,3202.6,3202.5,4.69209136]
[1633099919770,1.294,3202.6,3202.5,4.69209136]
[1633099920372,1.294,3202.6,3202.5,0.00833136]
[1633099920979,1.294,3202.6,3202.0,0.003]
[1633099920980,14.20795155,3202.3,3202.0,0.003]
[1633099921179,4.58832671,3202.2,3202.0,0.003]
[1633099921377,14.26406074,3202.1,3201.5,0.006]
[1633099921573,14.26406074,3202.1,3201.2,0.006]
[1633099921574,3.1241454,3201.7,3201.2,0.006]
[1633099921775,3.1241454,3201.7,3201.1,0.006]
[1633099921776,3.87804067,3201.6,3201.1,0.006]
[1633099921973,2.09446844,3201.6,3200.9,0.009]
[1633099922173,3.12425,3200.9,3200.6,0.009]
[1633099923375,3.12425,3200.9,3200.7,4.68637]
[1633099923778,3.12425,3200.9,3200.8,0.009]
[1633099924175,3.12425,3200.9,3200.6,0.009]
[1633099924375,4.12344899,3200.9,3200.6,0.009]
[1633099924574,3.12425,3200.9,3200.6,0.009]
[1633099924775,0.01172597,3200.8,3200.6,0.009]
[1633099924976,1.294,3200.7,3200.6,0.009]
[1633099925380,1.294,3200.7,3200.3,0.012]
[1633099925576,2.97049965,3200.8,3200.3,0.012]
[1633099925781,0.01172597,3200.8,3200.3,0.012]
[1633099925976,0.835721,3200.5,3200.3,0.012]
[1633099926179,3.960401,3200.5,3200.3,0.012]
[1633099926378,3.960401,3200.5,3200.2,0.012]
[1633099926780,6.96681566,3200.5,3200.2,0.012]
[1633099926978,6.96681566,3200.5,3199.6,0.15]
[1633099926979,3.960401,3200.5,3199.7,0.015]
[1633099927180,3.12468,3200.5,3199.8,0.02460305]
[1633099927382,3.12468,3200.5,3199.9,0.15]
[1633099927577,3.12468,3200.5,3199.9,0.165]
[1633099927778,0.01172597,3200.4,3200.0,0.015]
[1633099927979,0.01172597,3200.4,3200.0,0.165]
[1633099928179,1.00930573,3200.3,3200.0,0.165]
[1633099928375,0.01172597,3200.4,3200.1,0.012]
[1633099929377,0.01172597,3200.4,3200.1,0.92367368]
[1633099929779,0.01172597,3200.4,3200.2,0.012]
[1633099930379,0.01172597,3200.4,3200.2,4.69883]
[1633099930578,0.01172597,3200.4,3200.2,0.012]
[1633099930780,0.01172597,3200.5,3200.3,0.012]
[1633099930977,0.01172597,3200.5,3200.1,0.012]
[1633099931846,0.01172597,3200.5,3200.1,4.69904]
[1633099932243,0.01172597,3200.5,3200.2,0.012]
[1633099932846,0.01172597,3200.5,3200.3,0.73088245]
[1633099933244,0.01172597,3200.5,3200.4,0.012]
[1633099934051,1.30572597,3200.5,3200.4,0.012]
[1633099934446,1.30572597,3200.5,3200.1,0.012]
[1633099934647,0.01172597,3200.5,3200.1,0.012]
[1633099935851,3.12493,3200.4,3200.1,0.012]
[1633099936452,0.86660609,3200.3,3200.1,0.012]
[1633099936651,0.01172597,3200.3,3200.1,0.012]
[1633099936848,3.13669707,3200.3,3200.1,0.012]
[1633099937250,0.01172597,3200.3,3200.1,0.012]
[1633099939051,0.01172597,3200.3,3200.1,4.69894]
[1633099939255,0.01172597,3200.3,3200.1,0.012]
[1633099939454,0.01172597,3200.3,3200.2,0.012]
[1633099939652,0.01172597,3200.3,3200.2,0.00833733]
[1633099940052,1.06712765,3200.3,3200.2,0.02033733]
[1633099941253,1.01712765,3200.3,3200.2,0.02033733]
[1633099941866,2.31112765,3200.3,3200.2,0.02033733]
[1633099942653,2.31112765,3200.3,3199.7,0.003]
[1633099942853,1.01712765,3200.3,3199.2,0.006]
[1633099943556,0.78290492,3199.5,3199.2,0.006]
[1633099943757,4.72542,3200.4,3199.2,0.006]
[1633099943758,3.1257811,3199.4,3199.2,0.006]
[1633099944360,3.1259386,3199.9,3199.2,4.69424]
[1633099944558,4.44987584,3199.9,3199.2,4.69424]
[1633099944756,0.98086142,3199.6,3199.3,0.006]
[1633099944955,5.58398578,3199.9,3199.3,0.006]
[1633099945558,5.58398578,3199.9,3199.2,0.006]
[1633099945762,5.58398578,3199.9,3199.3,4.6881]
[1633099945956,0.8907578,3199.8,3199.3,4.6881]
[1633099946158,0.8907578,3199.8,3199.4,0.006]
[1633099946758,4.44987584,3199.9,3199.4,0.006]
[1633099947157,0.97513776,3199.6,3199.4,0.006]
[1633099947559,3.1256,3199.7,3199.4,0.006]
[1633099947759,3.1256,3199.7,3199.2,0.006]
[1633099948559,3.1256,3199.7,3199.2,4.69434]
[1633099948758,6.25123,3199.7,3199.2,4.69434]
[1633099948958,6.25123,3199.7,3199.3,0.006]
[1633099949359,6.25123,3199.7,3199.1,0.77448719]
[1633099949561,7.04477173,3199.7,3199.3,4.68822]
[1633099949760,7.04477173,3199.7,3199.1,0.77448719]
[1633099950159,3.1257396,3199.5,3199.1,0.05971982]
[1633099951360,0.93096534,3199.4,3199.1,0.05971982]
[1633099951559,3.1257396,3199.5,3199.1,4.74817982]
[1633099952959,3.1257396,3199.5,3199.2,0.77318294]
[1633099953163,3.1257396,3199.5,3199.3,4.68829]
[1633099954462,3.1257396,3199.5,3199.1,6.31052982]
[1633099954861,3.12589,3199.4,3199.1,0.05971982]
[1633099955864,0.8581521,3199.3,3199.1,0.05971982]
[1633099957266,6.2519,3199.4,3199.1,0.05971982]
[1633099958262,1.6,3199.3,3199.1,0.05971982]
[1633099961068,1.294,3199.2,3199.0,0.003]
[1633099961266,1.6,3199.3,3199.0,0.003]
[1633099961469,1.02911799,3199.1,3198.7,0.003]
[1633099961665,1.63001515,3199.0,3198.7,0.003]
[1633099961869,5.61507325,3198.9,3198.7,0.003]
[1633099962067,5.61507325,3198.9,3198.6,5.704e-05]
[1633099962068,4.05162525,3198.9,3198.6,5.704e-05]
[1633099962266,1.294,3198.8,3198.6,5.704e-05]
[1633099962469,5.0,3198.7,3198.0,0.006]
[1633099962668,3.12748,3198.6,3198.5,0.003]
[1633099962869,4.02551983,3198.6,3197.6,0.006]
[1633099963069,1.95066912,3197.7,3197.6,0.006]
[1633099963269,1.19023414,3197.7,3197.6,0.006]
[1633099963668,1.19023414,3197.7,3197.6,2.486]
[1633099963868,3.1275665,3197.9,3197.6,2.486]
[1633099964370,3.1274755,3198.4,3197.7,2.67159714]
[1633099964569,3.1274755,3198.4,3197.7,0.87946017]
[1633099964771,1.00352966,3198.2,3197.8,0.006]
[1633099965770,1.00352966,3198.2,3197.6,0.006]
[1633099966369,1.00352966,3198.2,3197.7,1.79056429]
[1633099966570,1.00352966,3198.2,3197.8,4.6906]
[1633099966770,0.97670863,3198.1,3197.8,4.6966]
[1633099966970,1.00352966,3198.2,3197.9,0.006]
[1633099967577,2.60352966,3198.2,3197.9,0.006]
[1633099967972,2.60352966,3198.2,3197.8,0.96951251]
[1633099968371,2.60352966,3198.2,3197.9,0.006]
[1633099968975,1.6,3198.2,3197.9,0.006]
[1633099969174,1.6,3198.2,3197.9,0.22013518]
[1633099969375,1.6,3198.2,3197.9,0.86240586]
[1633099969575,1.6,3198.2,3198.0,0.006]
[1633099969974,1.6,3198.2,3198.0,4.6962]
[1633099970374,1.6,3198.2,3198.1,0.003]
[1633099971175,1.6,3198.2,3197.9,0.006]
[1633099971375,4.45958368,3198.1,3197.9,0.006]
[1633099971576,3.07756278,3198.0,3197.9,0.006]
[1633099971776,0.85707255,3198.0,3197.6,0.006]
[1633099972375,1.01599111,3197.7,3197.6,0.006]
[1633099974376,12.39504845,3198.1,3197.6,0.006]
[1633099974577,6.2555645,3198.1,3197.6,0.006]
[1633099974777,1.6,3198.2,3197.7,4.69072]
[1633099975176,1.6,3198.2,3197.8,0.006]
[1633099975380,1.6,3198.2,3198.0,0.90755572]
[1633099975576,1.6,3198.2,3197.8,0.006]
[1633099975577,2.53791964,3198.2,3197.8,0.006]
[1633099975784,1.6,3198.2,3198.1,0.003]
[1633099976178,1.6,3198.2,3197.9,0.006]
[1633099976377,1.6,3198.2,3197.6,0.006]
[1633099976579,1.6,3198.2,3197.9,2.05268325]
[1633099976778,1.6,3198.2,3198.0,0.9080396]
[1633099976976,1.6,3198.2,3198.0,0.9140396]
[1633099977177,1.6,3198.2,3198.1,4.69314]
[1633099977376,1.6,3198.2,3198.1,5.14579563]
[1633099977577,1.6,3198.2,3198.1,4.69314]
[1633099979781,3.1264368,3199.0,3198.2,14.25]